Cogmind - Beta 12 @@@ ROGUE MODE // 2023.12.02 @ 17:50:15 Player: Triffids Result: Self-destructed Performance ------------- Evolutions (1) 500 Regions Visited (2) 400 Robots Destroyed (11) 55 Value Destroyed (271) 271 Prototype IDs (3) 60 Alien Tech Used (0) 0 Bonus (0) 0 TOTAL SCORE: 1286 Bonus ------- None Cogmind --------- Core Integrity 400/400 Matter 300/300 Energy 265/265 System Corruption 0% Temperature Cool (77) Movement Walking (120) Location -9/Materials Parts ------- > --- POWER (1) -------- Improved Ion Engine > --- PROPULSION (4) --- Aluminum Leg Aluminum Leg Aluminum Leg Aluminum Leg > --- UTILITY (2) ------ Medium Storage Unit Light Armor Plating > --- WEAPON (2) ------- Advanced Beam Cannon Advanced Beam Cannon > --- INVENTORY (10) --- Ion Engine Light Ion Engine Aluminum Leg Improved Aluminum Leg Seismic Detector Hardened Light Armor Plating Medium Laser Light EM Pulse Cannon Light EM Pulse Cannon Advanced Beam Cannon Peak State ------------ > --- POWER ------------ Improved Ion Engine > --- PROPULSION ------- Aluminum Leg Aluminum Leg Aluminum Leg Aluminum Leg > --- UTILITY ---------- Medium Storage Unit Light Armor Plating > --- WEAPON ----------- Advanced Beam Cannon Advanced Beam Cannon > --- INVENTORY -------- Ion Engine Light Ion Engine Aluminum Leg Improved Aluminum Leg Seismic Detector Hardened Light Armor Plating Medium Laser Light EM Pulse Cannon Light EM Pulse Cannon Light EM Pulse Cannon [Rating: 15] Favorites ----------- Power Improved Ion Engine Engine Improved Ion Engine Propulsion Aluminum Leg Treads Light Treads Leg Aluminum Leg Utility Medium Storage Unit Device Seismic Detector Storage Medium Storage Unit Protection Light Armor Plating Weapon Light EM Pulse Cannon Energy Gun Heavy EM Pulse Gun Energy Cannon Light EM Pulse Cannon Build | -11 -10 -9 ------- Run | Jun Mat Mat Slots Evolved 2 | . . 2 Power . | . . . Propulsion 2 | . . 2 Utility . | . . . Weapon . | . . . Parts Attached 21 | 7 3 11 Power 2 | 1 . 1 Engine 2 | 1 . 1 Core . | . . . Reactor . | . . . Propulsion 7 | 2 . 5 Treads 2 | . . 2 Leg 5 | 2 . 3 Wheel . | . . . Hover . | . . . Flight . | . . . Utility 4 | 2 1 1 Device 1 | 1 . . Storage 2 | 1 1 . Processor . | . . . Hackware . | . . . Protection 1 | . . 1 Artifact . | . . . Weapon 8 | 2 2 4 Energy Gun 4 | 2 . 2 Energy Cannon 4 | . 2 2 Ballistic Gun . | . . . Ballistic Cannon . | . . . Launcher . | . . . Special Weapon . | . . . Impact Weapon . | . . . Slashing Weapon . | . . . Piercing Weapon . | . . . Special Melee Weapon . | . . . Unidentified Prototypes 1 | . . 1 Parts Lost 1 | . . 1 Power . | . . . Propulsion . | . . . Utility . | . . . Weapon 1 | . . 1 Highest Loss Streak 1 | . . 1 To Critical Strikes . | . . . Average Slot Usage (%) 100 | . 100 100 Engine 11 | . 14 11 Treads 6 | . . 9 Leg 32 | . 28 34 Device 5 | . 14 1 Storage 11 | . 14 11 Protection 6 | . . 9 Energy Gun 5 | . 2 7 Energy Cannon 18 | . 25 14 Naked Turns . | . . . Heaviest Build 28 | 13 22 28 Greatest Support 40 | 20 20 40 Greatest Overweight (x) 2 | 2 1 1 Average Overweight (x) . | . . . Largest Inventory Capacity 10 | 8 10 10 Average Capacity 9 | 7 8 10 Most Carried 10 | 6 8 10 Average Carried 7 | 3 7 8 Final Capacity 10 | 8 10 10 Final Carried 10 | 4 8 10 Class Distribution -------------------- 63% | Mutant 36% | Scavenger-Mutant Dominant Class ---------------- Mutant | -10/Materials Scavenger-Mutant | -9/Materials Resources | -11 -10 -9 ----------- Run | Jun Mat Mat Matter Collected 410 | 254 16 140 Remotely . | . . . Salvage Created 474 | 25 76 373 Parts 28 | 4 2 22 Haulers Intercepted 2 | . 1 1 Recyclers Shooed 1 | 1 . . Parts Field Recycled . | . . . Retrieved Matter . | . . . Parts Self-Destructed . | . . . Prevented . | . . . Kills | -11 -10 -9 ------- Run | Jun Mat Mat Combat Hostiles Destroyed 6 | . . 6 Guns 4 | . . 4 Cannons 2 | . . 2 Classes Destroyed 6 | 1 2 3 Tunneler 1 | 1 . . Hauler 2 | . 1 1 Operator 1 | . 1 . Watcher 1 | . . 1 Grunt 5 | . . 5 Sentry 1 | . . 1 Best Kill Streak 2 | 1 1 2 Combat Bots Only 2 | . . 2 Max Kills in Single Turn 1 | 1 1 1 Gunslinging . | . . . Exploded . | . . . Melee . | . . . Uniques/NPCs Destroyed . | . . . Combat | -11 -10 -9 -------- Run | Jun Mat Mat Damage Taken 352 | . . 352 Core . | . . . Absorbed by Shields . | . . . Core Remaining (%) 100 | 100 100 . Volleys Fired 31 | 2 2 27 Largest 2 | 2 2 2 Hottest 136 | 100 112 136 Shots Fired 51 | 4 4 43 Gun 21 | 4 . 17 Cannon 30 | . 4 26 Launcher . | . . . Special . | . . . Kinetic . | . . . Thermal 10 | 4 . 6 Explosive . | . . . Electromagnetic 41 | . 4 37 Robot Hit Streak 5 | 3 3 5 Robot Miss Streak 4 | . 1 4 Penetration Max . | . . . Secondary Targets . | . . . Shots Hit Robots 29 | 3 3 23 Core Hits 13 | 2 1 10 Critical Kills . | . . . Critical Parts Destroyed . | . . . Critical Strikes 1 | . . 1 Corrupt 1 | . . 1 Melee Attacks . | . . . Impact . | . . . Slashing . | . . . Piercing . | . . . Sneak Attacks . | . . . Combat Hostiles . | . . . Follow-up Attacks . | . . . Damage Inflicted 678 | 38 75 565 Guns 208 | 38 . 170 Cannons 404 | . 75 329 Explosions 66 | . . 66 Melee . | . . . Ramming . | . . . Kinetic . | . . . Thermal 165 | 38 . 127 Explosive . | . . . Electromagnetic 513 | . 75 438 Impact . | . . . Slashing . | . . . Piercing . | . . . Highest Corruption . | . . . Average Corruption . | . . . Corruption Purged . | . . . Corruption Blocked . | . . . Overload Shots . | . . . Overflow Damage . | . . . Projectiles . | . . . Explosions . | . . . Melee . | . . . Knockbacks . | . . . Impact . | . . . Kinetic . | . . . Secondary . | . . . Self-Inflicted Damage . | . . . Shots . | . . . Rammed . | . . . Targets Rammed . | . . . Kicked . | . . . Crushed . | . . . Highest Temperature 244 | 39 51 244 Average Temperature 83 | 20 29 92 Received Heat Transfer 186 | . . 186 Effects 1 | . . 1 Interference 1 | . . 1 Siege Activations . | . . . Robots Corrupted 2 | . 1 1 Combat Hostiles . | . . . Parts Fried 3 | . 1 2 Impact Corruptions . | . . . Robots Melted . | . . . Combat Hostiles . | . . . Parts Melted . | . . . Heat Transferred 322 | 111 . 211 Parts Sabotaged . | . . . Parts Stolen . | . . . Parts Stripped . | . . . Power Chain Reactions 2 | . . 2 Missiles Intercepted . | . . . Alert | -11 -10 -9 ------- Run | Jun Mat Mat Peak Influence 239 | 5 34 239 Initial 14 | . 3 14 Average 94 | 2 15 149 Maximum Alert Level 1 | . . 1 Low Security (%) 84 | 100 100 73 Level 1 15 | . . 26 Level 2 . | . . . Level 3 . | . . . Level 4 . | . . . Level 5 . | . . . High Security . | . . . Max Security . | . . . Squads Dispatched 1 | . . 1 Investigation . | . . . Extermination . | . . . Reinforcement 1 | . . 1 Assault . | . . . Garrison . | . . . Intercept . | . . . Searches Triggered . | . . . Construction Impeded . | . . . Haulers Reinforced . | . . . Active Scanning Responses . | . . . Cargo Convoy Interrupts . | . . . Stealth | -11 -10 -9 --------- Run | Jun Mat Mat Distress Signals 2 | . . 2 Communications Jammed . | . . . Distress Signals . | . . . Times Spotted 17 | . 3 14 Peak Tracking Total 6 | . 2 6 Tactical Retreats . | . . . Traps | -11 -10 -9 ------- Run | Jun Mat Mat Traps Triggered . | . . . Indirectly . | . . . Trap Hack Attempts . | . . . Triggered . | . . . Disarmed . | . . . Reprogrammed . | . . . Reused . | . . . Traps Extracted . | . . . Installed . | . . . Triggered . | . . . Machines | -11 -10 -9 ---------- Run | Jun Mat Mat Machines Disabled . | . . . Max in Single Turn . | . . . Machines Repaired . | . . . Machines Sabotaged . | . . . Overloaded Fab Kills . | . . . Hacking | -11 -10 -9 --------- Run | Jun Mat Mat Machines Accessed 7 | . 3 4 Terminals 4 | . 2 2 Fabricators . | . . . Repair Stations . | . . . Recycling Units 3 | . 1 2 Scanalyzers . | . . . Garrison Access . | . . . Total Hacks 18 | . 9 9 Successful 9 | . 5 4 Failed 9 | . 4 5 Catastrophic 1 | . 1 . Database Lockouts . | . . . Manual 10 | . 7 3 Terminals 15 | . 8 7 Fabricators . | . . . Repair Stations . | . . . Recycling Units 3 | . 1 2 Scanalyzers . | . . . Garrison Access . | . . . Terminal Hacks 2 | . 1 1 Prototype ID Bank 1 | . . 1 Locate Traps 1 | . 1 . Fabricator Hacks . | . . . Repair Station Hacks . | . . . Recycling Unit Hacks 3 | . 1 2 Report Inventory 3 | . 1 2 Scanalyzer . | . . . Garrison Access Hacks . | . . . Unauthorized Hacks 4 | . 3 1 Terminals 4 | . 3 1 Track 1 | . 1 . Botnet 3 | . 2 1 Fabricators . | . . . Repair Stations . | . . . Recycling Units . | . . . Scanalyzers . | . . . Garrison Access . | . . . Data Cores Recovered 1 | . 1 . Used . | . . . Hacking Detections 6 | . 3 3 Full Trace Events . | . . . Feedback Events . | . . . Feedback Blocked . | . . . Robot Schematics Acquired . | . . . Robots Built . | . . . Authchips . | . . . Time . | . . . Total Robot Build Rating . | . . . Part Schematics Acquired . | . . . Parts Built . | . . . Authchips . | . . . Time . | . . . Total Part Build Rating . | . . . Parts Repaired . | . . . Time . | . . . Parts Recycled . | . . . Recycled Matter . | . . . Retrieved Matter . | . . . Retrieved Components . | . . . Parts Scanalyzed . | . . . Part Schematics Acquired . | . . . Parts Damaged . | . . . Bothacking | -11 -10 -9 ------------ Run | Jun Mat Mat Used RIF Installer . | . . . Robots Hacked . | . . . Non-combat . | . . . Combat . | . . . Robot Hacks Applied . | . . . Relay Couplers Released . | . . . Fabnet Peak Effective % . | . . . Robots Rewired . | . . . Allies Hacked . | . . . Hacks Repelled . | . . . Allies | -11 -10 -9 -------- Run | Jun Mat Mat Total Allies . | . . . Largest Group . | . . . Highest-Rated Group . | . . . Highest-Rated Ally . | . . . Total Orders . | . . . Ally Attacks . | . . . Total Damage . | . . . Kills . | . . . Allies Corrupted . | . . . Allies Melted . | . . . Intel | -11 -10 -9 ------- Run | Jun Mat Mat Robot Analysis Total . | . . . Derelict Logs Recovered . | . . . Drone Launches . | . . . Drone Recoveries . | . . . Exploration | -11 -10 -9 ------------- Run | Jun Mat Mat Turns Passed 640 | 60 197 383 Spaces Moved 392 | 39 143 210 Core 16 | 16 . . Treads 64 | . . 64 Legs 312 | 23 143 146 Wheels . | . . . Hover . | . . . Flight . | . . . Fastest Speed 50 | 50 120 120 Average Speed 126 | 93 126 132 Slowest Speed 190 | 150 190 190 Overloaded Moves . | . . . Propulsion Burnouts . | . . . Robots Hopped . | . . . Cave-ins Triggered . | . . . Exploration Rate (%) 22 | 4 32 31 Regions Visited 2 Branch Regions . Pre-discovered Areas . | . . . Known Exits Taken . | . . . Unknown Exits Taken 2 | 1 1 . Scrap Searched . | . . . Spaces Dug . | . . . Terrain Destroyed 6 | . . 6 Melee . | . . . Projectile . | . . . AOE 6 | . . 6 Terrain Rammed . | . . . Walls Destroyed . | . . . Machines Disabled . | . . . Actions | -11 -10 -9 --------- Run | Jun Mat Mat Total 489 | 57 158 274 Wait 12 | . 2 10 Move 390 | 38 142 210 Hop . | . . . Pick Up 21 | 8 6 7 Fast Attach 9 | 5 . 4 Attach 5 | 2 . 3 Detach 2 | . . 2 Swap 7 | . 3 4 Drop 12 | 2 3 7 Fire 31 | 2 2 27 Melee . | . . . Ram . | . . . Kick . | . . . Crush . | . . . Escape Stasis . | . . . Rewire . | . . . Trap . | . . . Miscellaneous . | . . . Route ------- -11/Junkyard -10/Materials -9/Materials (discovered 1 exit: [*Min]) History --------- Turn | Location | Event 7 | -11/Junkyard | Discovered new exit (range 14) 61 | -11/Junkyard | Entered Materials 210 | -10/Materials | Discovered new exit (range 12) 258 | -10/Materials | Entered another Materials area 258 | -9/Materials | Evolved 2 slots: Propulsion x2 318 | -9/Materials | Build established: Mutant 556 | -9/Materials | Discovered new exit (range 11) 641 | -9/Materials | Self-destructed Last Messages --------------- Awaiting botnet instructions. 00578_ K-01 Serf collects debris. 00582_ Dropped Lgt. EM Pulse Cannon. 00582_ K-01 Serf collects debris. 00582_ Acquired Prototype Energy Cannon. 00582_ Identified Adv. Beam Cannon. 00584_ Acquired 10 matter. 00586_ Dropped Hvy. EM Pulse Gun. 00587_ Acquired Adv. Beam Cannon. 00587_ K-01 Serf collects debris. 00588_ Acquired 10 matter. 00591_ K-01 Serf collects debris. 00591_ Dropped Lgt. EM Pulse Cannon. 00591_ Acquired Adv. Beam Cannon. 00600_ Connecting with Recycling Unit... >>Recycling(Report) Matter reserves: 0 Inventory: Empty 00604_ W-16 Scout sends out distress signal. 00617_ K-01 Serf cleans the Terminal. Map ----- +----------------------------------------------------+ | ???????????????????????#####/############???# #??? | | ???????????????????????# #??????????# #??? | | ???????????????????????# = #??????#####+#### | | ???????????????????????# = ######## # | | ???????????????????????# = #[ ## """ # | | ???????????????????????# """ """ # ## """ # | | ???????????????????????# """ """ + + """ # | | ???????????????????????# """ """ # ## # | | ???????????????????????# # ##/ """ # | | ???????????????????????########+### ### """ # | | ??????????????????????????????????# #?# """ # | | ??????????????????????????????? ??# #?# # | | ??????????????????????????????? #?# #?#####+#### | | ?????????????????????????????## ### ##### ## | | ?????????????????????????????# T" | | ?????????????????????????????# " | | ?????????????????????????????+ | | ?????????????????????????????# #######+## ! ## | | ?????????????????????????????# ## ! ## ##? | | ?????????????????????????????# ## *%= ## #?? | | ????????????????????########## ## |!= ## #?? | | ????????????????????#""!"|""## ## ## #?? | | ????????????????????# "!"|" ## ## ## #?? | | ?????????????#####+## ## ##== ## #?? | | ?????????? ##% ## ?? | | ?????????? kk <@ +* ## ?? | | ?????????? k ## ## ? | | ?????????????#####+## ##/#+## ## ? | | ????????????????????######### T ## ## ? | | ????????????????????????????# ########### ? | | ????????????????????????????# #[ #?? ##? | | ????????????????????????????# # """ #?? ??? | | ????????????????????????????# ]!# "Y" #???????? | | ????????????????????????????# ][# #???????? | | ????????????????????????????# = %####+##### #? | | ????????????????????????????# ]]+ +? | | ????????????????????????????# ]### #? | | ????????????????????????????######?# #? | | ???????????????????????????????????# ###? | | ???????????????????????????????????# #??? | | ???????????????????????????????????# #??? | | ???????????????????????????????????# #??? | | ???????????????????????????????????####### #??? | | ?????????????????????????????????????????? #??? | | ?????????????????????????????????????????? #??? | | ??????????????????????????????????????????? #??? | | ??????????????????????????????????????????? #??? | | ??????????????????????????????????????????? #??? | | ???????????????????????????????????????????? #??? | | ?????????????????????????????????????????????????? | +----------------------------------------------------+ Best States ------------- Heat Dissipation 28 Energy Generation 12 Energy Capacity 265 Matter Stores 300 Matter Capacity 300 Sight Range 16 Terrain Scan Density 10 Armor Coverage 150 Evasion (%) 55 Recoil Reduction 2 Item Schematics ----------------- None Robot Schematics ------------------ None Fabricated ------------ Nothing Alien Tech Used ----------------- None Achievements -------------- None Challenges ------------ None Game ------ Seed AblativeTractorScreen Manual? 0 Play Time 00:16:01 Cumulative 197.7 hours Start 2023.12.02 @ 17:33:52 End 2023.12.02 @ 17:50:15 Sessions 1 Manual Loads 0 Difficulty Rogue Special Mode None Game No. 300 Rogue 300 Adventurer 0 Explorer 0 Win Type - Total 1 Types 1/0/0/0/0/0/0/0/0 Lore% 48 Gallery% 56 Achievement% 38 Wizard Run 0 Options --------- ASCII 0 Keyboard 1 Movement Vi Keybinds 0 Fullscreen 0 Font 20/SmallcapsGlow Map View 76x50 Tactical HUD 1 Map Filters NONE Filters NONE Steam 1 RUN: 8fa6bd42-598a-4bbb-872d-e3e2e1f5b0dc